BODY,BODY NAME,DATE,TRANSACTION NUMBER, AMOUNT ,SUPPLIER NAME,SUPPLIER ID,EXPENSE AREA,EXPENSE TYPE,EXPENSE CODE,9AC - Level 9 Account Code
http://statistics.data.gov.uk/id/local-authority/12UE,Huntingdonshire District Council,27/03/2014,563645,1920,Mid Suffolk District Council,CR478093,Building Control Other,Subcontractors,777,
http://statistics.data.gov.uk/id/local-authority/12UE,Huntingdonshire District Council,27/03/2014,563643,24000,Cambridgeshire County Council,CR006678,Central Services M Us,Legal Fees,729,
http://statistics.data.gov.uk/id/local-authority/12UE,Huntingdonshire District Council,25/03/2014,561849,711.95,Uk Power Networks,CR403938,Housing Management Units,Electrical,332,
http://statistics.data.gov.uk/id/local-authority/12UE,Huntingdonshire District Council,13/03/2014,143514,2449.78,Civica Uk Ltd,CR415826,Abandoned Vehicles,Software,206,
http://statistics.data.gov.uk/id/local-authority/12UE,Huntingdonshire District Council,27/03/2014,145498,1616.24,King Street Housing Society,CR409301,Accommodation For Homeless,Management Charge,733,
http://statistics.data.gov.uk/id/local-authority/12UE,Huntingdonshire District Council,20/03/2014,145341,2160,Elephant & Castle Freehouse & Motel,CR401969,Accommodation For Homeless,Bed & Breakfast Payment,818,
http://statistics.data.gov.uk/id/local-authority/12UE,Huntingdonshire District Council,13/03/2014,144550,2052,Elephant & Castle Freehouse & Motel,CR401969,Accommodation For Homeless,Bed & Breakfast Payment,818,
http://statistics.data.gov.uk/id/local-authority/12UE,Huntingdonshire District Council,27/03/2014,145488,1890,Elephant & Castle Freehouse & Motel,CR401969,Accommodation For Homeless,Bed & Breakfast Payment,818,
http://statistics.data.gov.uk/id/local-authority/12UE,Huntingdonshire District Council,06/03/2014,144157,1620,Elephant & Castle Freehouse & Motel,CR401969,Accommodation For Homeless,Bed & Breakfast Payment,818,
http://statistics.data.gov.uk/id/local-authority/12UE,Huntingdonshire District Council,13/03/2014,143507,617.81,Air Liquide Uk Ltd,CR412121,Air Quality,Equipment Purchases,500,
http://statistics.data.gov.uk/id/local-authority/12UE,Huntingdonshire District Council,13/03/2014,144705,7.2,Orange Airtime,CR455799,Animal Welfare,Mobile Telephones & Radios,241,
http://statistics.data.gov.uk/id/local-authority/12UE,Huntingdonshire District Council,13/03/2014,144734,606,G Ferrara Ltd,CR478949,Bus Shelters,Sitework,359,
http://statistics.data.gov.uk/id/local-authority/12UE,Huntingdonshire District Council,13/03/2014,143277,7315.91,J Breheny Contractors Ltd,CR000314,Bus Stations,Sitework,359,
http://statistics.data.gov.uk/id/local-authority/12UE,Huntingdonshire District Council,13/03/2014,143276,2806.68,J Breheny Contractors Ltd,CR000314,Bus Stations,Sitework,359,
http://statistics.data.gov.uk/id/local-authority/12UE,Huntingdonshire District Council,13/03/2014,144596,2716.53,Swalec,CR407130,Bus Stations,Electricity,420,
http://statistics.data.gov.uk/id/local-authority/12UE,Huntingdonshire District Council,06/03/2014,143727,1090.38,Beebys Limited,CR415822,Bus Stations,Building Cleaning Internal,440,
http://statistics.data.gov.uk/id/local-authority/12UE,Huntingdonshire District Council,13/03/2014,144222,20000,Ytko,CR455448,Business & Enterprise Support,Training - Professional,130,
http://statistics.data.gov.uk/id/local-authority/12UE,Huntingdonshire District Council,13/03/2014,143751,2100,Mit Publishing Ltd,CR455655,Business & Enterprise Support,Advertising/Promoting Services,255,
http://statistics.data.gov.uk/id/local-authority/12UE,Huntingdonshire District Council,13/03/2014,144539,1440,Steve Welch Associates,CR422263,Business & Enterprise Support,Advertising/Promoting Services,255,
http://statistics.data.gov.uk/id/local-authority/12UE,Huntingdonshire District Council,13/03/2014,144795,6780,Idox Information Solutions Ltd,CR481134,Business & Enterprise Support,It Software Development,721,
http://statistics.data.gov.uk/id/local-authority/12UE,Huntingdonshire District Council,06/03/2014,144223,918,Mta,CR422168,Business & Enterprise Support,Promotions And Exhibitions,743,
http://statistics.data.gov.uk/id/local-authority/12UE,Huntingdonshire District Council,13/03/2014,144746,644.4,Action For Market Towns,CR031464,Business & Enterprise Support,Corporate Subscriptions,754,
http://statistics.data.gov.uk/id/local-authority/12UE,Huntingdonshire District Council,27/03/2014,145464,1800,Cambridgeshire County Council,CR017440,Business & Enterprise Support,Corporate Subscriptions,754,
http://statistics.data.gov.uk/id/local-authority/12UE,Huntingdonshire District Council,13/03/2014,144526,1100,Huntingdonshire Regional College,CR410476,Business & Enterprise Support,Grants (Paid Out),800,
http://statistics.data.gov.uk/id/local-authority/12UE,Huntingdonshire District Council,13/03/2014,143815,500,Young Enterprise (East Of England),CR478013,Business & Enterprise Support,Grants (Paid Out),800,
http://statistics.data.gov.uk/id/local-authority/12UE,Huntingdonshire District Council,13/03/2014,143816,500,Young Enterprise (East Of England),CR478013,Business & Enterprise Support,Grants (Paid Out),800,
http://statistics.data.gov.uk/id/local-authority/12UE,Huntingdonshire District Council,13/03/2014,144705,14.4,Orange Airtime,CR455799,Business Analysis,Mobile Telephones & Radios,241,
http://statistics.data.gov.uk/id/local-authority/12UE,Huntingdonshire District Council,13/03/2014,144705,9.6,Orange Airtime,CR455799,C C T V,Mobile Telephones & Radios,241,
http://statistics.data.gov.uk/id/local-authority/12UE,Huntingdonshire District Council,06/03/2014,143431,2807.81,Quadrant Security Group,CR027775,C C T V,Equipment Maintenance,511,
http://statistics.data.gov.uk/id/local-authority/12UE,Huntingdonshire District Council,06/03/2014,143433,2807.81,Quadrant Security Group,CR027775,C C T V,Equipment Maintenance,511,
http://statistics.data.gov.uk/id/local-authority/12UE,Huntingdonshire District Council,13/03/2014,144670,2807.81,Quadrant Security Group,CR027775,C C T V,Equipment Maintenance,511,
http://statistics.data.gov.uk/id/local-authority/12UE,Huntingdonshire District Council,04/03/2014,129012,2055,Bt Redcare,CR410623,C C T V,Transmission Lines Rental,767,
http://statistics.data.gov.uk/id/local-authority/12UE,Huntingdonshire District Council,04/03/2014,144159,-2055,Bt Redcare,CR410623,C C T V,Transmission Lines Rental,767,
http://statistics.data.gov.uk/id/local-authority/12UE,Huntingdonshire District Council,13/03/2014,144705,12.1,Orange Airtime,CR455799,Call Centre,Mobile Telephones & Radios,241,
http://statistics.data.gov.uk/id/local-authority/12UE,Huntingdonshire District Council,27/03/2014,131027,10710,Virgin Media,CR412057,Call Centre,I T Line Rental,248,
http://statistics.data.gov.uk/id/local-authority/12UE,Huntingdonshire District Council,13/03/2014,143280,798.61,J Breheny Contractors Ltd,CR000314,Car Park Assets,Sitework,359,
http://statistics.data.gov.uk/id/local-authority/12UE,Huntingdonshire District Council,27/03/2014,145608,14881.04,Durman Stearn (Civil Engineering) Ltd,CR455055,Car Parks Capital,Building Construction,300,
http://statistics.data.gov.uk/id/local-authority/12UE,Huntingdonshire District Council,06/03/2014,144204,636618.08,Graham,CR480029,Car Parks Capital,Building Construction,300,
http://statistics.data.gov.uk/id/local-authority/12UE,Huntingdonshire District Council,13/03/2014,143743,602.4,Peterborough Engraving,CR000620,Car Parks Capital,Signs,565,
http://statistics.data.gov.uk/id/local-authority/12UE,Huntingdonshire District Council,27/03/2014,145438,696,Jba Construction & Management Services,CR416716,Car Parks Capital,Consultants,711,
http://statistics.data.gov.uk/id/local-authority/12UE,Huntingdonshire District Council,13/03/2014,144705,28.8,Orange Airtime,CR455799,Central Services M Us,Mobile Telephones & Radios,241,
http://statistics.data.gov.uk/id/local-authority/12UE,Huntingdonshire District Council,13/03/2014,142635,859,Thomson Reuters,CR412314,Central Services M Us,Books & Publications,250,
http://statistics.data.gov.uk/id/local-authority/12UE,Huntingdonshire District Council,13/03/2014,144074,560,Thomson Reuters,CR412314,Central Services M Us,Books & Publications,250,
http://statistics.data.gov.uk/id/local-authority/12UE,Huntingdonshire District Council,13/03/2014,142636,-859,Thomson Reuters,CR412314,Central Services M Us,Books & Publications,250,
http://statistics.data.gov.uk/id/local-authority/12UE,Huntingdonshire District Council,13/03/2014,144595,5000,Andrew Sparke Consulting,CR453854,Central Services M Us,Subcontractors,777,
http://statistics.data.gov.uk/id/local-authority/12UE,Huntingdonshire District Council,13/03/2014,144301,4714.28,Locata Housing Services Ltd,CR478274,Choice Based Lettings (Ex Chr),Software,206,
http://statistics.data.gov.uk/id/local-authority/12UE,Huntingdonshire District Council,13/03/2014,144305,600,Locata Housing Services Ltd,CR478274,Choice Based Lettings (Ex Chr),Software,206,
http://statistics.data.gov.uk/id/local-authority/12UE,Huntingdonshire District Council,13/03/2014,143514,1633.19,Civica Uk Ltd,CR415826,Community Safety,Software,206,
http://statistics.data.gov.uk/id/local-authority/12UE,Huntingdonshire District Council,13/03/2014,144705,21.7,Orange Airtime,CR455799,Community Services M Us,Mobile Telephones & Radios,241,
http://statistics.data.gov.uk/id/local-authority/12UE,Huntingdonshire District Council,20/03/2014,145135,3661.78,Automotive Leasing,CR406882,Community Services M Us,Vehicle Operating Lease,601,
http://statistics.data.gov.uk/id/local-authority/12UE,Huntingdonshire District Council,13/03/2014,144705,55.3,Orange Airtime,CR455799,Corporate Office Mus,Mobile Telephones & Radios,241,
http://statistics.data.gov.uk/id/local-authority/12UE,Huntingdonshire District Council,06/03/2014,142701,2238,Cfl Estate Services,CR455208,Corporate Office Mus,Property Management,781,
http://statistics.data.gov.uk/id/local-authority/12UE,Huntingdonshire District Council,13/03/2014,144225,2070,Cfl Estate Services,CR455208,Corporate Office Mus,Property Management,781,
http://statistics.data.gov.uk/id/local-authority/12UE,Huntingdonshire District Council,06/03/2014,144229,28440,Northgate Information Solutions Uk Ltd,CR028925,Council Tax,Software,206,
http://statistics.data.gov.uk/id/local-authority/12UE,Huntingdonshire District Council,13/03/2014,144574,1624.97,Newlyn Plc,CR409114,Council Tax,Bailiffs,703,
http://statistics.data.gov.uk/id/local-authority/12UE,Huntingdonshire District Council,13/03/2014,144182,1210.76,Newlyn Plc,CR409114,Council Tax,Bailiffs,703,
http://statistics.data.gov.uk/id/local-authority/12UE,Huntingdonshire District Council,06/03/2014,142898,1015.65,Newlyn Plc,CR409114,Council Tax,Bailiffs,703,
http://statistics.data.gov.uk/id/local-authority/12UE,Huntingdonshire District Council,13/03/2014,143810,916.15,Newlyn Plc,CR409114,Council Tax,Bailiffs,703,
http://statistics.data.gov.uk/id/local-authority/12UE,Huntingdonshire District Council,13/03/2014,143388,740.72,Newlyn Plc,CR409114,Council Tax,Bailiffs,703,
http://statistics.data.gov.uk/id/local-authority/12UE,Huntingdonshire District Council,13/03/2014,144705,33.6,Orange Airtime,CR455799,Countryside,Mobile Telephones & Radios,241,
http://statistics.data.gov.uk/id/local-authority/12UE,Huntingdonshire District Council,13/03/2014,144728,530.8,Warboys Services Ltd,CR000841,Countryside,Gen Building Mtce - Planned,304,
http://statistics.data.gov.uk/id/local-authority/12UE,Huntingdonshire District Council,13/03/2014,144606,1274.62,Swalec,CR407130,Countryside,Electricity,420,
http://statistics.data.gov.uk/id/local-authority/12UE,Huntingdonshire District Council,27/03/2014,145461,604.58,Swalec,CR407130,Countryside,Electricity,420,
http://statistics.data.gov.uk/id/local-authority/12UE,Huntingdonshire District Council,13/03/2014,144601,599.77,Swalec,CR407130,Countryside,Electricity,420,
http://statistics.data.gov.uk/id/local-authority/12UE,Huntingdonshire District Council,27/03/2014,145437,636.23,British Gas Business,CR478619,Countryside,Gas,421,
http://statistics.data.gov.uk/id/local-authority/12UE,Huntingdonshire District Council,27/03/2014,145506,972.1,Witham Timber,CR422288,Countryside,Materials,550,
http://statistics.data.gov.uk/id/local-authority/12UE,Huntingdonshire District Council,13/03/2014,144711,15026.08,Capita Business Services Ltd,CR410639,Customer Service Centres,Software,206,
http://statistics.data.gov.uk/id/local-authority/12UE,Huntingdonshire District Council,13/03/2014,144705,12,Orange Airtime,CR455799,Customer Service Centres,Mobile Telephones & Radios,241,
http://statistics.data.gov.uk/id/local-authority/12UE,Huntingdonshire District Council,13/03/2014,144743,2647.54,White Commercial Surveyors Ltd,CR412242,Customer Service Centres,Rent,410,
http://statistics.data.gov.uk/id/local-authority/12UE,Huntingdonshire District Council,27/03/2014,145347,600,Sabell & Co (B'Ham) Ltd,CR000712,Dc Application Processing,Stationery,225,
http://statistics.data.gov.uk/id/local-authority/12UE,Huntingdonshire District Council,27/03/2014,145117,3857.48,Deloitte Llp,CR400573,Dc Application Processing,Consultants,711,
http://statistics.data.gov.uk/id/local-authority/12UE,Huntingdonshire District Council,27/03/2014,145348,864,Pos Enterprises,CR413287,Dc Application Processing,Consultants,711,
http://statistics.data.gov.uk/id/local-authority/12UE,Huntingdonshire District Council,27/03/2014,145116,1550,Redacted Personal Data ,CR452161,Dc Application Processing,Consultants,711,
http://statistics.data.gov.uk/id/local-authority/12UE,Huntingdonshire District Council,13/03/2014,143752,952.74,Royal Mail,CR027083,Document Centre,Postage,231,
http://statistics.data.gov.uk/id/local-authority/12UE,Huntingdonshire District Council,13/03/2014,144366,1436.62,Royal Mail,CR027083,Document Centre,Postage,231,
http://statistics.data.gov.uk/id/local-authority/12UE,Huntingdonshire District Council,20/03/2014,145171,442.63,Royal Mail,CR027083,Document Centre,Postage,231,
http://statistics.data.gov.uk/id/local-authority/12UE,Huntingdonshire District Council,13/03/2014,143261,16.36,Royal Mail,CR027083,Document Centre,Postage,231,
http://statistics.data.gov.uk/id/local-authority/12UE,Huntingdonshire District Council,13/03/2014,144367,2675.57,T N T Post London Ltd,CR479965,Document Centre,Postage,231,
http://statistics.data.gov.uk/id/local-authority/12UE,Huntingdonshire District Council,13/03/2014,144368,1127.82,T N T Post London Ltd,CR479965,Document Centre,Postage,231,
http://statistics.data.gov.uk/id/local-authority/12UE,Huntingdonshire District Council,06/03/2014,143259,1284.5,T N T Post London Ltd,CR479965,Document Centre,Postage,231,
http://statistics.data.gov.uk/id/local-authority/12UE,Huntingdonshire District Council,13/03/2014,143754,1063.51,T N T Post London Ltd,CR479965,Document Centre,Postage,231,
http://statistics.data.gov.uk/id/local-authority/12UE,Huntingdonshire District Council,13/03/2014,144705,2.5,Orange Airtime,CR455799,Document Centre,Mobile Telephones & Radios,241,
http://statistics.data.gov.uk/id/local-authority/12UE,Huntingdonshire District Council,27/03/2014,145238,2307.1,Canon Uk Ltd,CR409013,Document Centre,Equipment Maintenance,511,
http://statistics.data.gov.uk/id/local-authority/12UE,Huntingdonshire District Council,27/03/2014,139822,1035.17,Canon Uk Ltd,CR409013,Document Centre,Equipment Maintenance,511,
http://statistics.data.gov.uk/id/local-authority/12UE,Huntingdonshire District Council,27/03/2014,145262,-1035.17,Canon Uk Ltd,CR409013,Document Centre,Equipment Maintenance,511,
http://statistics.data.gov.uk/id/local-authority/12UE,Huntingdonshire District Council,27/03/2014,145265,-1035.17,Canon Uk Ltd,CR409013,Document Centre,Equipment Maintenance,511,
http://statistics.data.gov.uk/id/local-authority/12UE,Huntingdonshire District Council,06/03/2014,143755,2160.56,Konica Minolta,CR478866,Document Centre,Equipment Maintenance,511,
http://statistics.data.gov.uk/id/local-authority/12UE,Huntingdonshire District Council,13/03/2014,144371,944.4,Neopost,CR028326,Document Centre,Equipment Maintenance,511,
http://statistics.data.gov.uk/id/local-authority/12UE,Huntingdonshire District Council,13/03/2014,144732,1821.6,Antalis Ltd,CR479468,Document Centre,Paper,562,
http://statistics.data.gov.uk/id/local-authority/12UE,Huntingdonshire District Council,13/03/2014,144723,680.94,Antalis Ltd,CR479468,Document Centre,Paper,562,
http://statistics.data.gov.uk/id/local-authority/12UE,Huntingdonshire District Council,06/03/2014,142961,511.2,Antalis Ltd,CR479468,Document Centre,Paper,562,
http://statistics.data.gov.uk/id/local-authority/12UE,Huntingdonshire District Council,06/03/2014,142962,511.2,Antalis Ltd,CR479468,Document Centre,Paper,562,
http://statistics.data.gov.uk/id/local-authority/12UE,Huntingdonshire District Council,13/03/2014,144730,511.2,Antalis Ltd,CR479468,Document Centre,Paper,562,
http://statistics.data.gov.uk/id/local-authority/12UE,Huntingdonshire District Council,06/03/2014,143458,1877.04,Staffline Group,CR416827,Domestic Refuse,Hired Staff,100,
http://statistics.data.gov.uk/id/local-authority/12UE,Huntingdonshire District Council,13/03/2014,144245,1783.19,Staffline Group,CR416827,Domestic Refuse,Hired Staff,100,
http://statistics.data.gov.uk/id/local-authority/12UE,Huntingdonshire District Council,13/03/2014,144661,1220.08,Staffline Group,CR416827,Domestic Refuse,Hired Staff,100,
http://statistics.data.gov.uk/id/local-authority/12UE,Huntingdonshire District Council,13/03/2014,143820,1134.76,Staffline Group,CR416827,Domestic Refuse,Hired Staff,100,
http://statistics.data.gov.uk/id/local-authority/12UE,Huntingdonshire District Council,13/03/2014,144246,1006.78,Staffline Group,CR416827,Domestic Refuse,Hired Staff,100,
http://statistics.data.gov.uk/id/local-authority/12UE,Huntingdonshire District Council,13/03/2014,144663,1006.78,Staffline Group,CR416827,Domestic Refuse,Hired Staff,100,
http://statistics.data.gov.uk/id/local-authority/12UE,Huntingdonshire District Council,06/03/2014,143461,503.39,Staffline Group,CR416827,Domestic Refuse,Hired Staff,100,
http://statistics.data.gov.uk/id/local-authority/12UE,Huntingdonshire District Council,27/03/2014,145669,744,Gilden Training,CR481057,Domestic Refuse,Training - Operational,131,
http://statistics.data.gov.uk/id/local-authority/12UE,Huntingdonshire District Council,27/03/2014,145197,566,Autoelec Cambs,CR480035,Domestic Refuse,Vehicle Maintenance External,619,
http://statistics.data.gov.uk/id/local-authority/12UE,Huntingdonshire District Council,13/03/2014,144349,1446,Frank Ratcliffe & Son,CR007546,Domestic Refuse,Vehicle Maintenance External,619,
http://statistics.data.gov.uk/id/local-authority/12UE,Huntingdonshire District Council,13/03/2014,144351,3480,Innovative Safety Systems Limited,CR422258,Domestic Refuse,Vehicle Maintenance External,619,
http://statistics.data.gov.uk/id/local-authority/12UE,Huntingdonshire District Council,13/03/2014,144352,3480,Innovative Safety Systems Limited,CR422258,Domestic Refuse,Vehicle Maintenance External,619,
http://statistics.data.gov.uk/id/local-authority/12UE,Huntingdonshire District Council,13/03/2014,144676,108,Red Forge Ltd,CR405690,Domestic Refuse,Vehicle Refurbishment,624,
http://statistics.data.gov.uk/id/local-authority/12UE,Huntingdonshire District Council,13/03/2014,144211,521.24,A C Commercials,CR000141,Domestic Refuse,Vehicle Parts & Fittings,625,
http://statistics.data.gov.uk/id/local-authority/12UE,Huntingdonshire District Council,13/03/2014,144195,967.39,Dennis Eagle Ltd,CR000200,Domestic Refuse,Vehicle Parts & Fittings,625,
http://statistics.data.gov.uk/id/local-authority/12UE,Huntingdonshire District Council,06/03/2014,143286,838.8,Dennis Eagle Ltd,CR000200,Domestic Refuse,Vehicle Parts & Fittings,625,
http://statistics.data.gov.uk/id/local-authority/12UE,Huntingdonshire District Council,13/03/2014,144198,755.35,Dennis Eagle Ltd,CR000200,Domestic Refuse,Vehicle Parts & Fittings,625,
http://statistics.data.gov.uk/id/local-authority/12UE,Huntingdonshire District Council,13/03/2014,144635,198.48,Trinity Engineering & Component Supplies Ltd,CR455479,Domestic Refuse,Vehicle Parts & Fittings,625,
http://statistics.data.gov.uk/id/local-authority/12UE,Huntingdonshire District Council,13/03/2014,144797,400.37,Freedom Lubricants Ltd,CR411569,Domestic Refuse,Vehicle Oil & Lubricants,626,
http://statistics.data.gov.uk/id/local-authority/12UE,Huntingdonshire District Council,13/03/2014,144184,1895.79,Bandvulc Truck Tyres,CR406810,Domestic Refuse,Tyres,630,
http://statistics.data.gov.uk/id/local-authority/12UE,Huntingdonshire District Council,20/03/2014,145345,1412.98,Eisotech Services Ltd,CR479071,E F H And Depots,Gen Building Mtce - Responsive,303,
http://statistics.data.gov.uk/id/local-authority/12UE,Huntingdonshire District Council,13/03/2014,144540,4541.78,Haven Power Ltd,CR455940,E F H And Depots,Electricity,420,
http://statistics.data.gov.uk/id/local-authority/12UE,Huntingdonshire District Council,27/03/2014,145470,542.27,Swalec,CR407130,E F H And Depots,Electricity,420,
http://statistics.data.gov.uk/id/local-authority/12UE,Huntingdonshire District Council,13/03/2014,144626,964.62,E-On Energy,CR416430,E F H And Depots,Gas,421,
http://statistics.data.gov.uk/id/local-authority/12UE,Huntingdonshire District Council,27/03/2014,145446,574.38,Anglian Water,CR000071,E F H And Depots,Water,432,
http://statistics.data.gov.uk/id/local-authority/12UE,Huntingdonshire District Council,27/03/2014,145446,621.17,Anglian Water,CR000071,E F H And Depots,Sewerage,433,
http://statistics.data.gov.uk/id/local-authority/12UE,Huntingdonshire District Council,13/03/2014,144800,1356.6,Ecocleen Services Limited,CR406985,E F H And Depots,Building Cleaning Internal,440,
http://statistics.data.gov.uk/id/local-authority/12UE,Huntingdonshire District Council,20/03/2014,145178,1356.6,Ecocleen Services Limited,CR406985,E F H And Depots,Building Cleaning Internal,440,
http://statistics.data.gov.uk/id/local-authority/12UE,Huntingdonshire District Council,13/03/2014,144575,2006.16,Shaw & Sons Limited,CR003422,Elections,Stationery,225,
http://statistics.data.gov.uk/id/local-authority/12UE,Huntingdonshire District Council,13/03/2014,143752,2385.71,Royal Mail,CR027083,Electoral Registration,Postage,231,
http://statistics.data.gov.uk/id/local-authority/12UE,Huntingdonshire District Council,20/03/2014,145171,442.63,Royal Mail,CR027083,Electoral Registration,Postage,231,
http://statistics.data.gov.uk/id/local-authority/12UE,Huntingdonshire District Council,13/03/2014,144367,114.43,T N T Post London Ltd,CR479965,Electoral Registration,Postage,231,
http://statistics.data.gov.uk/id/local-authority/12UE,Huntingdonshire District Council,13/03/2014,144368,1366.43,T N T Post London Ltd,CR479965,Electoral Registration,Postage,231,
http://statistics.data.gov.uk/id/local-authority/12UE,Huntingdonshire District Council,06/03/2014,143259,56.5,T N T Post London Ltd,CR479965,Electoral Registration,Postage,231,
http://statistics.data.gov.uk/id/local-authority/12UE,Huntingdonshire District Council,13/03/2014,143754,5.72,T N T Post London Ltd,CR479965,Electoral Registration,Postage,231,
http://statistics.data.gov.uk/id/local-authority/12UE,Huntingdonshire District Council,06/03/2014,143731,720,Marney Hall Consultancy Limited,CR480342,Energy Efficiency,Sitework,359,
http://statistics.data.gov.uk/id/local-authority/12UE,Huntingdonshire District Council,13/03/2014,144716,4882.5,Climate Energy Ltd,CR422249,Environment Equipment Capital,Sitework,359,
http://statistics.data.gov.uk/id/local-authority/12UE,Huntingdonshire District Council,06/03/2014,143731,1147.06,Marney Hall Consultancy Limited,CR480342,Environment Equipment Capital,Sitework,359,
http://statistics.data.gov.uk/id/local-authority/12UE,Huntingdonshire District Council,13/03/2014,144531,500,Blueflame Heating Ltd,CR032908,Environment Equipment Capital,Equipment Purchases,500,
http://statistics.data.gov.uk/id/local-authority/12UE,Huntingdonshire District Council,27/03/2014,145687,2940,Cambridge Architectural Research Ltd,CR455908,Environment Equipment Capital,Consultants,711,
http://statistics.data.gov.uk/id/local-authority/12UE,Huntingdonshire District Council,13/03/2014,143514,9799.1,Civica Uk Ltd,CR415826,Environmental Health General,Software,206,
http://statistics.data.gov.uk/id/local-authority/12UE,Huntingdonshire District Council,13/03/2014,143514,0.01,Civica Uk Ltd,CR415826,Environmental Health M Us,Software,206,
http://statistics.data.gov.uk/id/local-authority/12UE,Huntingdonshire District Council,13/03/2014,144705,151.3,Orange Airtime,CR455799,Environmental Health M Us,Mobile Telephones & Radios,241,
http://statistics.data.gov.uk/id/local-authority/12UE,Huntingdonshire District Council,27/03/2014,145465,882,Peter Lockyer Advertising Ltd,CR033030,Environmental Health M Us,Advertising/Promoting Services,255,
http://statistics.data.gov.uk/id/local-authority/12UE,Huntingdonshire District Council,13/03/2014,144705,93.6,Orange Airtime,CR455799,Environmental Management,Mobile Telephones & Radios,241,
http://statistics.data.gov.uk/id/local-authority/12UE,Huntingdonshire District Council,13/03/2014,144253,3178.8,Coulson & Sons Ltd,CR479347,Environmental Management,Dangerous Structures Removal,713,
http://statistics.data.gov.uk/id/local-authority/12UE,Huntingdonshire District Council,27/03/2014,144777,1422.73,Network Rail,CR429211,Estates Properties Capital,Consultants,711,
http://statistics.data.gov.uk/id/local-authority/12UE,Huntingdonshire District Council,27/03/2014,145402,2133.48,Freeth Cartwright Llp,CR480787,Estates Properties Capital,Legal Fees,729,
http://statistics.data.gov.uk/id/local-authority/12UE,Huntingdonshire District Council,13/03/2014,144073,1231.08,Freeth Cartwright Llp,CR480787,Estates Properties Capital,Legal Fees,729,
http://statistics.data.gov.uk/id/local-authority/12UE,Huntingdonshire District Council,13/03/2014,143539,9224.4,Pricewaterhouse Coopers Llp,CR487210,External Audit,Audit Fees,701,
http://statistics.data.gov.uk/id/local-authority/12UE,Huntingdonshire District Council,13/03/2014,144309,29579.56,Advanced Business Solutions,CR032921,Financial Services,Software,206,
http://statistics.data.gov.uk/id/local-authority/12UE,Huntingdonshire District Council,13/03/2014,144311,2012.63,Advanced Business Solutions,CR032921,Financial Services,Software,206,
http://statistics.data.gov.uk/id/local-authority/12UE,Huntingdonshire District Council,13/03/2014,144264,1074,Auditware Systems Limited,CR40190,Financial Services Mus,Software,206,
http://statistics.data.gov.uk/id/local-authority/12UE,Huntingdonshire District Council,13/03/2014,144262,1800,Baker Tilly Business Services Ltd,CR422260,Financial Services Mus,Software,206,
http://statistics.data.gov.uk/id/local-authority/12UE,Huntingdonshire District Council,13/03/2014,144705,12,Orange Airtime,CR455799,Financial Services Mus,Mobile Telephones & Radios,241,
http://statistics.data.gov.uk/id/local-authority/12UE,Huntingdonshire District Council,13/03/2014,144091,5838,Cipfa Business Limited,CR480088,Financial Services Mus,Books & Publications,250,
http://statistics.data.gov.uk/id/local-authority/12UE,Huntingdonshire District Council,13/03/2014,144090,5466,Cipfa Business Limited,CR480088,Financial Services Mus,Corporate Subscriptions,754,
http://statistics.data.gov.uk/id/local-authority/12UE,Huntingdonshire District Council,13/03/2014,144265,3348,Cipfa Business Limited,CR480088,Financial Services Mus,Corporate Subscriptions,754,
http://statistics.data.gov.uk/id/local-authority/12UE,Huntingdonshire District Council,27/03/2014,144834,510,Robert Bosch Ltd,CR422273,Fleet Management,Vehicle Maintenance External,619,
http://statistics.data.gov.uk/id/local-authority/12UE,Huntingdonshire District Council,13/03/2014,144676,349.2,Red Forge Ltd,CR405690,Fleet Management,Vehicle Refurbishment,624,
http://statistics.data.gov.uk/id/local-authority/12UE,Huntingdonshire District Council,13/03/2014,144797,22.88,Freedom Lubricants Ltd,CR411569,Fleet Management,Vehicle Oil & Lubricants,626,
http://statistics.data.gov.uk/id/local-authority/12UE,Huntingdonshire District Council,13/03/2014,144676,165.6,Red Forge Ltd,CR405690,Fleet Management,Travel Expenses,636,
http://statistics.data.gov.uk/id/local-authority/12UE,Huntingdonshire District Council,13/03/2014,144796,6204,F S Trailers And Towbar Centre,CR409236,Grounds Maintenance (Combined),Equipment Purchases,500,
http://statistics.data.gov.uk/id/local-authority/12UE,Huntingdonshire District Council,06/03/2014,143552,977.85,Ernest Doe & Sons,CR000261,Grounds Maintenance (Combined),Vehicle Parts & Fittings,625,
http://statistics.data.gov.uk/id/local-authority/12UE,Huntingdonshire District Council,13/03/2014,144635,113.42,Trinity Engineering & Component Supplies Ltd,CR455479,Grounds Maintenance (Combined),Vehicle Parts & Fittings,625,
http://statistics.data.gov.uk/id/local-authority/12UE,Huntingdonshire District Council,13/03/2014,144797,263.09,Freedom Lubricants Ltd,CR411569,Grounds Maintenance (Combined),Vehicle Oil & Lubricants,626,
http://statistics.data.gov.uk/id/local-authority/12UE,Huntingdonshire District Council,13/03/2014,143914,564.24,Lightning Recruitment,CR028184,Head Of Imd,Hired Staff,100,
http://statistics.data.gov.uk/id/local-authority/12UE,Huntingdonshire District Council,13/03/2014,143915,561.66,Lightning Recruitment,CR028184,Head Of Imd,Hired Staff,100,
http://statistics.data.gov.uk/id/local-authority/12UE,Huntingdonshire District Council,13/03/2014,144232,561.66,Lightning Recruitment,CR028184,Head Of Imd,Hired Staff,100,
http://statistics.data.gov.uk/id/local-authority/12UE,Huntingdonshire District Council,13/03/2014,144812,561.66,Lightning Recruitment,CR028184,Head Of Imd,Hired Staff,100,
http://statistics.data.gov.uk/id/local-authority/12UE,Huntingdonshire District Council,27/03/2014,145193,561.66,Lightning Recruitment,CR028184,Head Of Imd,Hired Staff,100,
http://statistics.data.gov.uk/id/local-authority/12UE,Huntingdonshire District Council,13/03/2014,144705,9.6,Orange Airtime,CR455799,Head Of Imd,Mobile Telephones & Radios,241,
http://statistics.data.gov.uk/id/local-authority/12UE,Huntingdonshire District Council,13/03/2014,144364,2680,Edrm Systems Ltd,CR416278,Helpdesk,Hired Staff,100,
http://statistics.data.gov.uk/id/local-authority/12UE,Huntingdonshire District Council,06/03/2014,143045,1290,Premier It Recruitment Ltd,CR454029,Helpdesk,Hired Staff,100,
http://statistics.data.gov.uk/id/local-authority/12UE,Huntingdonshire District Council,06/03/2014,143309,1290,Premier It Recruitment Ltd,CR454029,Helpdesk,Hired Staff,100,
http://statistics.data.gov.uk/id/local-authority/12UE,Huntingdonshire District Council,13/03/2014,143834,1290,Premier It Recruitment Ltd,CR454029,Helpdesk,Hired Staff,100,
http://statistics.data.gov.uk/id/local-authority/12UE,Huntingdonshire District Council,13/03/2014,144254,1290,Premier It Recruitment Ltd,CR454029,Helpdesk,Hired Staff,100,
http://statistics.data.gov.uk/id/local-authority/12UE,Huntingdonshire District Council,13/03/2014,144679,1290,Premier It Recruitment Ltd,CR454029,Helpdesk,Hired Staff,100,
http://statistics.data.gov.uk/id/local-authority/12UE,Huntingdonshire District Council,06/03/2014,144229,11284.5,Northgate Information Solutions Uk Ltd,CR028925,Helpdesk,Software,206,
http://statistics.data.gov.uk/id/local-authority/12UE,Huntingdonshire District Council,06/03/2014,142968,1356.26,Virgin Media Business,CR033120,Helpdesk,Telephone Charges,240,
http://statistics.data.gov.uk/id/local-authority/12UE,Huntingdonshire District Council,13/03/2014,144700,1307.94,Virgin Media Business,CR033120,Helpdesk,Telephone Charges,240,
http://statistics.data.gov.uk/id/local-authority/12UE,Huntingdonshire District Council,13/03/2014,144705,4.8,Orange Airtime,CR455799,Helpdesk,Mobile Telephones & Radios,241,
http://statistics.data.gov.uk/id/local-authority/12UE,Huntingdonshire District Council,27/03/2014,145596,11340,Virgin Media,CR412057,Helpdesk,I T Line Rental,248,
http://statistics.data.gov.uk/id/local-authority/12UE,Huntingdonshire District Council,27/03/2014,129251,3780,Virgin Media,CR412057,Helpdesk,I T Line Rental,248,
http://statistics.data.gov.uk/id/local-authority/12UE,Huntingdonshire District Council,27/03/2014,145593,3780,Virgin Media,CR412057,Helpdesk,I T Line Rental,248,
http://statistics.data.gov.uk/id/local-authority/12UE,Huntingdonshire District Council,27/03/2014,124894,1590,Virgin Media,CR412057,Helpdesk,I T Line Rental,248,
http://statistics.data.gov.uk/id/local-authority/12UE,Huntingdonshire District Council,27/03/2014,121066,1530,Virgin Media,CR412057,Helpdesk,I T Line Rental,248,
http://statistics.data.gov.uk/id/local-authority/12UE,Huntingdonshire District Council,27/03/2014,122897,1530,Virgin Media,CR412057,Helpdesk,I T Line Rental,248,
http://statistics.data.gov.uk/id/local-authority/12UE,Huntingdonshire District Council,27/03/2014,126836,1530,Virgin Media,CR412057,Helpdesk,I T Line Rental,248,
http://statistics.data.gov.uk/id/local-authority/12UE,Huntingdonshire District Council,27/03/2014,129254,1530,Virgin Media,CR412057,Helpdesk,I T Line Rental,248,
http://statistics.data.gov.uk/id/local-authority/12UE,Huntingdonshire District Council,27/03/2014,130933,1530,Virgin Media,CR412057,Helpdesk,I T Line Rental,248,
http://statistics.data.gov.uk/id/local-authority/12UE,Huntingdonshire District Council,27/03/2014,133130,1530,Virgin Media,CR412057,Helpdesk,I T Line Rental,248,
http://statistics.data.gov.uk/id/local-authority/12UE,Huntingdonshire District Council,27/03/2014,134739,1530,Virgin Media,CR412057,Helpdesk,I T Line Rental,248,
http://statistics.data.gov.uk/id/local-authority/12UE,Huntingdonshire District Council,27/03/2014,136607,1530,Virgin Media,CR412057,Helpdesk,I T Line Rental,248,
http://statistics.data.gov.uk/id/local-authority/12UE,Huntingdonshire District Council,27/03/2014,139329,1530,Virgin Media,CR412057,Helpdesk,I T Line Rental,248,
http://statistics.data.gov.uk/id/local-authority/12UE,Huntingdonshire District Council,27/03/2014,140223,1530,Virgin Media,CR412057,Helpdesk,I T Line Rental,248,
http://statistics.data.gov.uk/id/local-authority/12UE,Huntingdonshire District Council,27/03/2014,141956,1530,Virgin Media,CR412057,Helpdesk,I T Line Rental,248,
http://statistics.data.gov.uk/id/local-authority/12UE,Huntingdonshire District Council,27/03/2014,143320,1530,Virgin Media,CR412057,Helpdesk,I T Line Rental,248,
http://statistics.data.gov.uk/id/local-authority/12UE,Huntingdonshire District Council,27/03/2014,122886,-2630.46,Virgin Media,CR412057,Helpdesk,I T Line Rental,248,
http://statistics.data.gov.uk/id/local-authority/12UE,Huntingdonshire District Council,27/03/2014,125069,-2630.46,Virgin Media,CR412057,Helpdesk,I T Line Rental,248,
http://statistics.data.gov.uk/id/local-authority/12UE,Huntingdonshire District Council,27/03/2014,136608,-5861.59,Virgin Media,CR412057,Helpdesk,I T Line Rental,248,
http://statistics.data.gov.uk/id/local-authority/12UE,Huntingdonshire District Council,27/03/2014,122114,-8464.82,Virgin Media,CR412057,Helpdesk,I T Line Rental,248,
http://statistics.data.gov.uk/id/local-authority/12UE,Huntingdonshire District Council,27/03/2014,122463,-27448.76,Virgin Media,CR412057,Helpdesk,I T Line Rental,248,
http://statistics.data.gov.uk/id/local-authority/12UE,Huntingdonshire District Council,06/03/2014,142968,2014.55,Virgin Media Business,CR033120,Helpdesk,I T Line Rental,248,
http://statistics.data.gov.uk/id/local-authority/12UE,Huntingdonshire District Council,13/03/2014,144700,2014.55,Virgin Media Business,CR033120,Helpdesk,I T Line Rental,248,
http://statistics.data.gov.uk/id/local-authority/12UE,Huntingdonshire District Council,27/03/2014,145603,10675.22,Virgin Media Business/Cpsn,CR455148,Helpdesk,I T Line Rental,248,
http://statistics.data.gov.uk/id/local-authority/12UE,Huntingdonshire District Council,27/03/2014,145600,7523.54,Virgin Media Business/Cpsn,CR455148,Helpdesk,I T Line Rental,248,
http://statistics.data.gov.uk/id/local-authority/12UE,Huntingdonshire District Council,27/03/2014,145605,6057.6,Virgin Media Business/Cpsn,CR455148,Helpdesk,I T Line Rental,248,
http://statistics.data.gov.uk/id/local-authority/12UE,Huntingdonshire District Council,06/03/2014,144075,7200,Eacs Ltd,CR404499,Helpdesk,I C T Services,731,
http://statistics.data.gov.uk/id/local-authority/12UE,Huntingdonshire District Council,13/03/2014,143514,12248.9,Civica Uk Ltd,CR415826,Home Improvement Agency,Software,206,
http://statistics.data.gov.uk/id/local-authority/12UE,Huntingdonshire District Council,13/03/2014,143376,624,Alexanders,CR415843,Homelessness Management,Removal/Storage,750,
http://statistics.data.gov.uk/id/local-authority/12UE,Huntingdonshire District Council,27/03/2014,145500,1078.84,Bonar & Son Removals,CR407157,Homelessness Management,Removal/Storage,750,
http://statistics.data.gov.uk/id/local-authority/12UE,Huntingdonshire District Council,20/03/2014,145344,730.8,Bonar & Son Removals,CR407157,Homelessness Management,Removal/Storage,750,
http://statistics.data.gov.uk/id/local-authority/12UE,Huntingdonshire District Council,13/03/2014,144598,510,Move It Quickly,CR479000,Homelessness Management,Removal/Storage,750,
http://statistics.data.gov.uk/id/local-authority/12UE,Huntingdonshire District Council,06/03/2014,143886,18436,Metropolitan Housing Trust Ltd,CR487206,Hostel Support,Hostel Revenue Support,817,
http://statistics.data.gov.uk/id/local-authority/12UE,Huntingdonshire District Council,13/03/2014,144181,2400,Intelligence Led Solutions Limited,CR479499,Housing  Benefits Admin,Software,206,
http://statistics.data.gov.uk/id/local-authority/12UE,Huntingdonshire District Council,06/03/2014,142712,974.14,James Andrews Recruitment,CR453753,Housing Management Units,Hired Staff,100,
http://statistics.data.gov.uk/id/local-authority/12UE,Huntingdonshire District Council,13/03/2014,144156,598.8,Ld Events,CR480610,Housing Management Units,Training - Operational,131,
http://statistics.data.gov.uk/id/local-authority/12UE,Huntingdonshire District Council,13/03/2014,144705,19.2,Orange Airtime,CR455799,Housing Management Units,Mobile Telephones & Radios,241,
http://statistics.data.gov.uk/id/local-authority/12UE,Huntingdonshire District Council,13/03/2014,144092,1098.29,B. S. Graves Electrical Ltd,CR000363,Housing Services Other,Gen Building Mtce - Responsive,303,
http://statistics.data.gov.uk/id/local-authority/12UE,Huntingdonshire District Council,20/03/2014,145106,2585.11,Swalec,CR407130,Housing Services Other,Electricity,420,
http://statistics.data.gov.uk/id/local-authority/12UE,Huntingdonshire District Council,20/03/2014,145343,5089.56,Anglian Water,CR000071,Housing Services Other,Water,432,
http://statistics.data.gov.uk/id/local-authority/12UE,Huntingdonshire District Council,06/03/2014,144233,15000,Northgate Information Solutions Uk Ltd,CR028925,Human Resources,Software,206,
http://statistics.data.gov.uk/id/local-authority/12UE,Huntingdonshire District Council,06/03/2014,144310,1027.2,Northgate Information Solutions Uk Ltd,CR028925,Human Resources,Software,206,
http://statistics.data.gov.uk/id/local-authority/12UE,Huntingdonshire District Council,13/03/2014,144705,14.4,Orange Airtime,CR455799,Human Resources,Mobile Telephones & Radios,241,
http://statistics.data.gov.uk/id/local-authority/12UE,Huntingdonshire District Council,13/03/2014,144666,2472,Rsa Environmental Health Limited,CR482415,Human Resources,Consultants,711,
http://statistics.data.gov.uk/id/local-authority/12UE,Huntingdonshire District Council,13/03/2014,144538,109200,Cambridgeshire County Council,CR017440,Human Resources,Human Resources Services,779,
http://statistics.data.gov.uk/id/local-authority/12UE,Huntingdonshire District Council,20/03/2014,145164,109200,Cambridgeshire County Council,CR017440,Human Resources,Human Resources Services,779,
http://statistics.data.gov.uk/id/local-authority/12UE,Huntingdonshire District Council,13/03/2014,142960,4550,Click Hr Ltd,CR452125,Human Resources,Human Resources Services,779,
http://statistics.data.gov.uk/id/local-authority/12UE,Huntingdonshire District Council,13/03/2014,143278,600,J Breheny Contractors Ltd,CR000314,Industrial Properties,Sitework,359,
http://statistics.data.gov.uk/id/local-authority/12UE,Huntingdonshire District Council,06/03/2014,143051,24270,Esri Uk,CR405125,Information Manager,Software,206,
http://statistics.data.gov.uk/id/local-authority/12UE,Huntingdonshire District Council,13/03/2014,144705,9.6,Orange Airtime,CR455799,Information Manager,Mobile Telephones & Radios,241,
http://statistics.data.gov.uk/id/local-authority/12UE,Huntingdonshire District Council,13/03/2014,144683,1680,Cambridgeshire County Council,CR017440,Information Manager,Subcontractors,777,
http://statistics.data.gov.uk/id/local-authority/12UE,Huntingdonshire District Council,27/03/2014,145606,1680,Cambridgeshire County Council,CR017440,Information Manager,Subcontractors,777,
http://statistics.data.gov.uk/id/local-authority/12UE,Huntingdonshire District Council,13/03/2014,144705,2.4,Orange Airtime,CR455799,Leisure Centres Overall,Mobile Telephones & Radios,241,
http://statistics.data.gov.uk/id/local-authority/12UE,Huntingdonshire District Council,13/03/2014,144705,21.6,Orange Airtime,CR455799,Leisure Development,Mobile Telephones & Radios,241,
http://statistics.data.gov.uk/id/local-authority/12UE,Huntingdonshire District Council,13/03/2014,143781,1873.94,Sue'S Canoes,CR422232,Leisure Development,Sports Equipment,524,
http://statistics.data.gov.uk/id/local-authority/12UE,Huntingdonshire District Council,13/03/2014,144711,308.46,Capita Business Services Ltd,CR410639,Licences,Software,206,
http://statistics.data.gov.uk/id/local-authority/12UE,Huntingdonshire District Council,13/03/2014,144705,4.8,Orange Airtime,CR455799,Licences,Mobile Telephones & Radios,241,
http://statistics.data.gov.uk/id/local-authority/12UE,Huntingdonshire District Council,13/03/2014,144267,1684.8,T C Harrison Ford,CR405072,Licences,Vehicle Inspection,618,
http://statistics.data.gov.uk/id/local-authority/12UE,Huntingdonshire District Council,13/03/2014,144510,732,James Button & Co,CR405456,Licences,Corporate Subscriptions,754,
http://statistics.data.gov.uk/id/local-authority/12UE,Huntingdonshire District Council,06/03/2014,143901,4463,Deloitte Llp,CR400573,Local Development Framework,Consultants,711,
http://statistics.data.gov.uk/id/local-authority/12UE,Huntingdonshire District Council,13/03/2014,144355,663.6,Deloitte Llp,CR400573,Local Development Framework,Consultants,711,
http://statistics.data.gov.uk/id/local-authority/12UE,Huntingdonshire District Council,06/03/2014,143900,6000,Urs Infrastructure & Environment Uk Ltd,CR032963,Local Development Framework,Consultants,711,
http://statistics.data.gov.uk/id/local-authority/12UE,Huntingdonshire District Council,06/03/2014,143813,1740,Pos Enterprises,CR413287,Local Development Framework,Corporate Subscriptions,754,
http://statistics.data.gov.uk/id/local-authority/12UE,Huntingdonshire District Council,13/03/2014,144705,45.6,Orange Airtime,CR455799,Member Allowances & Support,Mobile Telephones & Radios,241,
http://statistics.data.gov.uk/id/local-authority/12UE,Huntingdonshire District Council,06/03/2014,142968,6.9,Virgin Media Business,CR033120,Member Allowances & Support,I T Line Rental,248,
http://statistics.data.gov.uk/id/local-authority/12UE,Huntingdonshire District Council,13/03/2014,144700,6.9,Virgin Media Business,CR033120,Member Allowances & Support,I T Line Rental,248,
http://statistics.data.gov.uk/id/local-authority/12UE,Huntingdonshire District Council,13/03/2014,144089,807.04,Portakabin Ltd,CR416090,Miscellaneous Grants,Equipment Hire,507,
http://statistics.data.gov.uk/id/local-authority/12UE,Huntingdonshire District Council,13/03/2014,144235,850.2,Portakabin Ltd,CR478566,Miscellaneous Grants,Grants (Paid Out),800,
http://statistics.data.gov.uk/id/local-authority/12UE,Huntingdonshire District Council,13/03/2014,144705,9.6,Orange Airtime,CR455799,Off Street Parking,Mobile Telephones & Radios,241,
http://statistics.data.gov.uk/id/local-authority/12UE,Huntingdonshire District Council,13/03/2014,144501,1736.58,Oastlodge Ltd,CR479114,Off Street Parking,Rent,410,
http://statistics.data.gov.uk/id/local-authority/12UE,Huntingdonshire District Council,13/03/2014,144212,2210.14,Cale Briparc Ltd,CR401137,Off Street Parking,Equipment Purchases,500,
http://statistics.data.gov.uk/id/local-authority/12UE,Huntingdonshire District Council,13/03/2014,144219,1033.14,Cale Briparc Ltd,CR401137,Off Street Parking,Equipment Purchases,500,
http://statistics.data.gov.uk/id/local-authority/12UE,Huntingdonshire District Council,27/03/2014,145153,3426,Cale Briparc Ltd,CR401137,Off Street Parking,Car Park Machines,522,
http://statistics.data.gov.uk/id/local-authority/12UE,Huntingdonshire District Council,06/03/2014,142968,0.07,Virgin Media Business,CR033120,One Leisure Huntingdon,Telephone Charges,240,
http://statistics.data.gov.uk/id/local-authority/12UE,Huntingdonshire District Council,13/03/2014,144700,1.13,Virgin Media Business,CR033120,One Leisure Huntingdon,Telephone Charges,240,
http://statistics.data.gov.uk/id/local-authority/12UE,Huntingdonshire District Council,13/03/2014,144705,4.8,Orange Airtime,CR455799,One Leisure Huntingdon,Mobile Telephones & Radios,241,
http://statistics.data.gov.uk/id/local-authority/12UE,Huntingdonshire District Council,13/03/2014,144107,750,Chris Robinson T/A Cr Design,CR416482,One Leisure Huntingdon,Gen Building Mtce - Planned,304,
http://statistics.data.gov.uk/id/local-authority/12UE,Huntingdonshire District Council,13/03/2014,144694,756,Hytrac Lifts Ltd,CR030618,One Leisure Huntingdon,Plant & Equipment Maintenance,380,
http://statistics.data.gov.uk/id/local-authority/12UE,Huntingdonshire District Council,20/03/2014,145149,1784.92,Swalec,CR407130,One Leisure Huntingdon,Electricity,420,
http://statistics.data.gov.uk/id/local-authority/12UE,Huntingdonshire District Council,13/03/2014,144567,4243.79,E-On Energy,CR416430,One Leisure Huntingdon,Gas,421,
http://statistics.data.gov.uk/id/local-authority/12UE,Huntingdonshire District Council,13/03/2014,144571,1151.04,E-On Energy,CR416430,One Leisure Huntingdon,Gas,421,
http://statistics.data.gov.uk/id/local-authority/12UE,Huntingdonshire District Council,13/03/2014,144690,1387.5,Ecocleen Services Limited,CR406985,One Leisure Huntingdon,Building Cleaning Internal,440,
http://statistics.data.gov.uk/id/local-authority/12UE,Huntingdonshire District Council,27/03/2014,145564,-1387.5,Ecocleen Services Limited,CR406985,One Leisure Huntingdon,Building Cleaning Internal,440,
http://statistics.data.gov.uk/id/local-authority/12UE,Huntingdonshire District Council,06/03/2014,144132,564,Csl Group,CR406172,One Leisure Huntingdon,Equipment Maintenance,511,
http://statistics.data.gov.uk/id/local-authority/12UE,Huntingdonshire District Council,27/03/2014,145614,898.55,Swimrite Suppliers Ltd (Srs Leisure),CR478711,One Leisure Huntingdon,Materials For Resale,570,
http://statistics.data.gov.uk/id/local-authority/12UE,Huntingdonshire District Council,06/03/2014,143114,358.63,Experian Ltd,CR401513,One Leisure Huntingdon,Licences,730,
http://statistics.data.gov.uk/id/local-authority/12UE,Huntingdonshire District Council,13/03/2014,144179,340.72,Gladstone Mrm,CR405717,One Leisure Huntingdon,Licences,730,
http://statistics.data.gov.uk/id/local-authority/12UE,Huntingdonshire District Council,27/03/2014,145272,5635.12,Performing Right Society,CR033495,One Leisure Huntingdon,Licences,730,
http://statistics.data.gov.uk/id/local-authority/12UE,Huntingdonshire District Council,13/03/2014,144705,3.19,Orange Airtime,CR455799,One Leisure Ramsey,Mobile Telephones & Radios,241,
http://statistics.data.gov.uk/id/local-authority/12UE,Huntingdonshire District Council,13/03/2014,144653,676.61,Roger Wilson Electronics,CR028041,One Leisure Ramsey,Gen Building Mtce - Responsive,303,
http://statistics.data.gov.uk/id/local-authority/12UE,Huntingdonshire District Council,13/03/2014,144655,1797.84,Roger Wilson Electronics,CR028041,One Leisure Ramsey,Gen Building Mtce - Planned,304,
http://statistics.data.gov.uk/id/local-authority/12UE,Huntingdonshire District Council,13/03/2014,143524,888.96,Barnet Pool Maintenance Ltd,CR412070,One Leisure Ramsey,Plant & Equipment Maintenance,380,
http://statistics.data.gov.uk/id/local-authority/12UE,Huntingdonshire District Council,13/03/2014,144607,1164.85,Swalec,CR407130,One Leisure Ramsey,Electricity,420,
http://statistics.data.gov.uk/id/local-authority/12UE,Huntingdonshire District Council,13/03/2014,144627,2139.6,E-On Energy,CR416430,One Leisure Ramsey,Gas,421,
http://statistics.data.gov.uk/id/local-authority/12UE,Huntingdonshire District Council,13/03/2014,144671,644.58,Technogym Uk Ltd,CR033037,One Leisure Ramsey,Equipment Maintenance,511,
http://statistics.data.gov.uk/id/local-authority/12UE,Huntingdonshire District Council,13/03/2014,144669,562.45,Booker Cash And Carry,CR027611,One Leisure Ramsey,Vending Materials,560,
http://statistics.data.gov.uk/id/local-authority/12UE,Huntingdonshire District Council,06/03/2014,143114,358.62,Experian Ltd,CR401513,One Leisure Ramsey,Licences,730,
http://statistics.data.gov.uk/id/local-authority/12UE,Huntingdonshire District Council,13/03/2014,144179,340.7,Gladstone Mrm,CR405717,One Leisure Ramsey,Licences,730,
http://statistics.data.gov.uk/id/local-authority/12UE,Huntingdonshire District Council,27/03/2014,145272,3720.51,Performing Right Society,CR033495,One Leisure Ramsey,Licences,730,
http://statistics.data.gov.uk/id/local-authority/12UE,Huntingdonshire District Council,13/03/2014,144705,4.8,Orange Airtime,CR455799,One Leisure Sawtry,Mobile Telephones & Radios,241,
http://statistics.data.gov.uk/id/local-authority/12UE,Huntingdonshire District Council,27/03/2014,145457,813.68,Burgin Ltd,CR482438,One Leisure Sawtry,Gen Building Mtce - Responsive,303,
http://statistics.data.gov.uk/id/local-authority/12UE,Huntingdonshire District Council,20/03/2014,145105,3518.42,Swalec,CR407130,One Leisure Sawtry,Electricity,420,
http://statistics.data.gov.uk/id/local-authority/12UE,Huntingdonshire District Council,13/03/2014,144570,2322.53,E-On Energy,CR416430,One Leisure Sawtry,Gas,421,
http://statistics.data.gov.uk/id/local-authority/12UE,Huntingdonshire District Council,13/03/2014,144312,1089.3,Ecocleen Services Limited,CR406985,One Leisure Sawtry,Building Cleaning Internal,440,
http://statistics.data.gov.uk/id/local-authority/12UE,Huntingdonshire District Council,27/03/2014,145453,798,Burgin Ltd,CR482438,One Leisure Sawtry,Equipment Maintenance,511,
http://statistics.data.gov.uk/id/local-authority/12UE,Huntingdonshire District Council,06/03/2014,144321,642,Iql Uk Ltd,CR415623,One Leisure Sawtry,Materials,550,
http://statistics.data.gov.uk/id/local-authority/12UE,Huntingdonshire District Council,06/03/2014,143114,358.62,Experian Ltd,CR401513,One Leisure Sawtry,Licences,730,
http://statistics.data.gov.uk/id/local-authority/12UE,Huntingdonshire District Council,13/03/2014,144179,340.72,Gladstone Mrm,CR405717,One Leisure Sawtry,Licences,730,
http://statistics.data.gov.uk/id/local-authority/12UE,Huntingdonshire District Council,27/03/2014,145272,4196.87,Performing Right Society,CR033495,One Leisure Sawtry,Licences,730,
http://statistics.data.gov.uk/id/local-authority/12UE,Huntingdonshire District Council,13/03/2014,144705,15.46,Orange Airtime,CR455799,One Leisure St Ives,Mobile Telephones & Radios,241,
http://statistics.data.gov.uk/id/local-authority/12UE,Huntingdonshire District Council,06/03/2014,144185,722.5,Redacted Personal Data,CR455646,One Leisure St Ives,Gen Building Mtce - Responsive,303,
http://statistics.data.gov.uk/id/local-authority/12UE,Huntingdonshire District Council,27/03/2014,144633,2227.39,Roger Wilson Electronics,CR028041,One Leisure St Ives,Gen Building Mtce - Planned,304,
http://statistics.data.gov.uk/id/local-authority/12UE,Huntingdonshire District Council,13/03/2014,143397,1036.64,Safe Secure Locker Services Ltd,CR478312,One Leisure St Ives,Gen Building Mtce - Planned,304,
http://statistics.data.gov.uk/id/local-authority/12UE,Huntingdonshire District Council,13/03/2014,143792,2114.56,Evoqua Water Technolgies Ltd,CR422250,One Leisure St Ives,Plant & Equipment Maintenance,380,
http://statistics.data.gov.uk/id/local-authority/12UE,Huntingdonshire District Council,13/03/2014,144183,1090.74,Lynx Bowling Services,CR455532,One Leisure St Ives,Plant & Equipment Maintenance,380,
http://statistics.data.gov.uk/id/local-authority/12UE,Huntingdonshire District Council,13/03/2014,144546,7788.21,Haven Power Ltd,CR455940,One Leisure St Ives,Electricity,420,
http://statistics.data.gov.uk/id/local-authority/12UE,Huntingdonshire District Council,13/03/2014,144565,3741.56,Haven Power Ltd,CR455940,One Leisure St Ives,Electricity,420,
http://statistics.data.gov.uk/id/local-authority/12UE,Huntingdonshire District Council,13/03/2014,144630,6730.1,E-On Energy,CR416430,One Leisure St Ives,Gas,421,
http://statistics.data.gov.uk/id/local-authority/12UE,Huntingdonshire District Council,13/03/2014,144623,929.41,E-On Energy,CR416430,One Leisure St Ives,Gas,421,
http://statistics.data.gov.uk/id/local-authority/12UE,Huntingdonshire District Council,27/03/2014,144616,1788.3,Ecocleen Services Limited,CR406985,One Leisure St Ives,Building Cleaning Internal,440,
http://statistics.data.gov.uk/id/local-authority/12UE,Huntingdonshire District Council,27/03/2014,145227,1788.3,Ecocleen Services Limited,CR406985,One Leisure St Ives,Building Cleaning Internal,440,
http://statistics.data.gov.uk/id/local-authority/12UE,Huntingdonshire District Council,27/03/2014,144618,1750.19,Ecocleen Services Limited,CR406985,One Leisure St Ives,Building Cleaning Internal,440,
http://statistics.data.gov.uk/id/local-authority/12UE,Huntingdonshire District Council,27/03/2014,145228,1750.19,Ecocleen Services Limited,CR406985,One Leisure St Ives,Building Cleaning Internal,440,
http://statistics.data.gov.uk/id/local-authority/12UE,Huntingdonshire District Council,06/03/2014,143794,603.54,Maxwell Amenity Ltd,CR455666,One Leisure St Ives,Equipment Purchases,500,
http://statistics.data.gov.uk/id/local-authority/12UE,Huntingdonshire District Council,13/03/2014,144183,1250,Lynx Bowling Services,CR455532,One Leisure St Ives,Equipment Maintenance,511,
http://statistics.data.gov.uk/id/local-authority/12UE,Huntingdonshire District Council,13/03/2014,144166,97,Booker Cash And Carry,CR027611,One Leisure St Ives,Materials,550,
http://statistics.data.gov.uk/id/local-authority/12UE,Huntingdonshire District Council,13/03/2014,144787,30.89,Booker Cash And Carry,CR027611,One Leisure St Ives,Materials,550,
http://statistics.data.gov.uk/id/local-authority/12UE,Huntingdonshire District Council,13/03/2014,144166,725.28,Booker Cash And Carry,CR027611,One Leisure St Ives,Bar Provisions,558,
http://statistics.data.gov.uk/id/local-authority/12UE,Huntingdonshire District Council,13/03/2014,144787,581.65,Booker Cash And Carry,CR027611,One Leisure St Ives,Bar Provisions,558,
http://statistics.data.gov.uk/id/local-authority/12UE,Huntingdonshire District Council,13/03/2014,144160,1560.98,J V Trading,CR422174,One Leisure St Ives,Bar Provisions,558,
http://statistics.data.gov.uk/id/local-authority/12UE,Huntingdonshire District Council,13/03/2014,143402,976.64,J V Trading,CR422174,One Leisure St Ives,Bar Provisions,558,
http://statistics.data.gov.uk/id/local-authority/12UE,Huntingdonshire District Council,13/03/2014,144612,533.86,J V Trading,CR422174,One Leisure St Ives,Bar Provisions,558,
http://statistics.data.gov.uk/id/local-authority/12UE,Huntingdonshire District Council,13/03/2014,144263,1882.63,Oakham Ales,CR422253,One Leisure St Ives,Bar Provisions,558,
http://statistics.data.gov.uk/id/local-authority/12UE,Huntingdonshire District Council,13/03/2014,144166,104.19,Booker Cash And Carry,CR027611,One Leisure St Ives,Catering Materials,559,
http://statistics.data.gov.uk/id/local-authority/12UE,Huntingdonshire District Council,13/03/2014,144787,194.14,Booker Cash And Carry,CR027611,One Leisure St Ives,Catering Materials,559,
http://statistics.data.gov.uk/id/local-authority/12UE,Huntingdonshire District Council,06/03/2014,143114,358.62,Experian Ltd,CR401513,One Leisure St Ives,Licences,730,
http://statistics.data.gov.uk/id/local-authority/12UE,Huntingdonshire District Council,13/03/2014,144179,340.7,Gladstone Mrm,CR405717,One Leisure St Ives,Licences,730,
http://statistics.data.gov.uk/id/local-authority/12UE,Huntingdonshire District Council,27/03/2014,145272,3083.29,Performing Right Society,CR033495,One Leisure St Ives,Licences,730,
http://statistics.data.gov.uk/id/local-authority/12UE,Huntingdonshire District Council,13/03/2014,144740,4199.86,Brian Shaw Concerts,CR422269,One Leisure St Ives,Entertainments Inc Cable Tv,744,
http://statistics.data.gov.uk/id/local-authority/12UE,Huntingdonshire District Council,27/03/2014,145533,597.6,Sky Business,CR033259,One Leisure St Ives,Entertainments Inc Cable Tv,744,
http://statistics.data.gov.uk/id/local-authority/12UE,Huntingdonshire District Council,06/03/2014,144268,894.23,Starlite Roadshow,CR024127,One Leisure St Ives,Entertainments Inc Cable Tv,744,
http://statistics.data.gov.uk/id/local-authority/12UE,Huntingdonshire District Council,13/03/2014,144705,22.4,Orange Airtime,CR455799,One Leisure St Neots,Mobile Telephones & Radios,241,
http://statistics.data.gov.uk/id/local-authority/12UE,Huntingdonshire District Council,06/03/2014,143485,655.28,Roger Wilson Electronics,CR028041,One Leisure St Neots,Gen Building Mtce - Responsive,303,
http://statistics.data.gov.uk/id/local-authority/12UE,Huntingdonshire District Council,06/03/2014,143486,547.5,Roger Wilson Electronics,CR028041,One Leisure St Neots,Gen Building Mtce - Responsive,303,
http://statistics.data.gov.uk/id/local-authority/12UE,Huntingdonshire District Council,06/03/2014,143016,2967.55,Meadow Joinery Solutions Ltd,CR422201,One Leisure St Neots,Fixtures & Fittings,379,
http://statistics.data.gov.uk/id/local-authority/12UE,Huntingdonshire District Council,13/03/2014,143850,888.96,Barnet Pool Maintenance Ltd,CR412070,One Leisure St Neots,Plant & Equipment Maintenance,380,
http://statistics.data.gov.uk/id/local-authority/12UE,Huntingdonshire District Council,13/03/2014,144279,1832.82,Evoqua Water Technolgies Ltd,CR422250,One Leisure St Neots,Plant & Equipment Maintenance,380,
http://statistics.data.gov.uk/id/local-authority/12UE,Huntingdonshire District Council,13/03/2014,144283,756.46,Hygromatic Gmbh,CR455529,One Leisure St Neots,Plant & Equipment Maintenance,380,
http://statistics.data.gov.uk/id/local-authority/12UE,Huntingdonshire District Council,13/03/2014,144543,8594.4,Haven Power Ltd,CR455940,One Leisure St Neots,Electricity,420,
http://statistics.data.gov.uk/id/local-authority/12UE,Huntingdonshire District Council,13/03/2014,144542,4707.48,Haven Power Ltd,CR455940,One Leisure St Neots,Electricity,420,
http://statistics.data.gov.uk/id/local-authority/12UE,Huntingdonshire District Council,13/03/2014,144568,3458.17,E-On Energy,CR416430,One Leisure St Neots,Gas,421,
http://statistics.data.gov.uk/id/local-authority/12UE,Huntingdonshire District Council,13/03/2014,144569,564.73,E-On Energy,CR416430,One Leisure St Neots,Gas,421,
http://statistics.data.gov.uk/id/local-authority/12UE,Huntingdonshire District Council,20/03/2014,145152,744.73,Anglian Water,CR000071,One Leisure St Neots,Water,432,
http://statistics.data.gov.uk/id/local-authority/12UE,Huntingdonshire District Council,13/03/2014,144280,1888.42,Ecocleen Services Limited,CR406985,One Leisure St Neots,Building Cleaning Internal,440,
http://statistics.data.gov.uk/id/local-authority/12UE,Huntingdonshire District Council,13/03/2014,143470,644.32,Snackline Direct Ltd,CR478090,One Leisure St Neots,Vending Materials,560,
http://statistics.data.gov.uk/id/local-authority/12UE,Huntingdonshire District Council,06/03/2014,142677,641.58,Swimrite Suppliers Ltd (Srs Leisure),CR478711,One Leisure St Neots,Materials For Resale,570,
http://statistics.data.gov.uk/id/local-authority/12UE,Huntingdonshire District Council,06/03/2014,143114,358.63,Experian Ltd,CR401513,One Leisure St Neots,Licences,730,
http://statistics.data.gov.uk/id/local-authority/12UE,Huntingdonshire District Council,13/03/2014,144179,340.72,Gladstone Mrm,CR405717,One Leisure St Neots,Licences,730,
http://statistics.data.gov.uk/id/local-authority/12UE,Huntingdonshire District Council,27/03/2014,145272,7292.64,Performing Right Society,CR033495,One Leisure St Neots,Licences,730,
http://statistics.data.gov.uk/id/local-authority/12UE,Huntingdonshire District Council,13/03/2014,144350,960,Magenta Coaching Solutions,CR480942,Operations Mgt Units,Training - Other,136,
http://statistics.data.gov.uk/id/local-authority/12UE,Huntingdonshire District Council,13/03/2014,143491,714,Magenta Coaching Solutions,CR480942,Operations Mgt Units,Training - Other,136,
http://statistics.data.gov.uk/id/local-authority/12UE,Huntingdonshire District Council,13/03/2014,144705,172.66,Orange Airtime,CR455799,Operations Mgt Units,Mobile Telephones & Radios,241,
http://statistics.data.gov.uk/id/local-authority/12UE,Huntingdonshire District Council,13/03/2014,143281,2065.5,J Breheny Contractors Ltd,CR000314,Parks & Open Spaces,Sitework,359,
http://statistics.data.gov.uk/id/local-authority/12UE,Huntingdonshire District Council,13/03/2014,143279,789.16,J Breheny Contractors Ltd,CR000314,Parks & Open Spaces,Sitework,359,
http://statistics.data.gov.uk/id/local-authority/12UE,Huntingdonshire District Council,13/03/2014,143273,540,J Breheny Contractors Ltd,CR000314,Parks & Open Spaces,Sitework,359,
http://statistics.data.gov.uk/id/local-authority/12UE,Huntingdonshire District Council,13/03/2014,144705,7.2,Orange Airtime,CR455799,Pathfinder House Site,Mobile Telephones & Radios,241,
http://statistics.data.gov.uk/id/local-authority/12UE,Huntingdonshire District Council,13/03/2014,144513,781.2,P A Collacott & Company,CR482300,Pathfinder House Site,Plant & Equipment Maintenance,380,
http://statistics.data.gov.uk/id/local-authority/12UE,Huntingdonshire District Council,13/03/2014,144544,9493.34,Haven Power Ltd,CR455940,Pathfinder House Site,Electricity,420,
http://statistics.data.gov.uk/id/local-authority/12UE,Huntingdonshire District Council,13/03/2014,144631,2557.62,E-On Energy,CR416430,Pathfinder House Site,Gas,421,
http://statistics.data.gov.uk/id/local-authority/12UE,Huntingdonshire District Council,13/03/2014,144523,2146.93,Ecocleen Services Limited,CR406985,Pathfinder House Site,Building Cleaning Internal,440,
http://statistics.data.gov.uk/id/local-authority/12UE,Huntingdonshire District Council,20/03/2014,145177,2146.93,Ecocleen Services Limited,CR406985,Pathfinder House Site,Building Cleaning Internal,440,
http://statistics.data.gov.uk/id/local-authority/12UE,Huntingdonshire District Council,13/03/2014,144769,814.89,Maskearaid Ind Supplies,CR033423,Pathfinder House Site,Cleaning Materials,443,
http://statistics.data.gov.uk/id/local-authority/12UE,Huntingdonshire District Council,27/03/2014,145658,6583.89,Computershare Vouchers Ltd,CR412205,Payroll,Childcare Admin Vouchers,144,
http://statistics.data.gov.uk/id/local-authority/12UE,Huntingdonshire District Council,06/03/2014,144233,15000,Northgate Information Solutions Uk Ltd,CR028925,Payroll,Software,206,
http://statistics.data.gov.uk/id/local-authority/12UE,Huntingdonshire District Council,06/03/2014,144310,1027.2,Northgate Information Solutions Uk Ltd,CR028925,Payroll,Software,206,
http://statistics.data.gov.uk/id/local-authority/12UE,Huntingdonshire District Council,13/03/2014,144538,38280,Cambridgeshire County Council,CR017440,Payroll,Financial Services,772,
http://statistics.data.gov.uk/id/local-authority/12UE,Huntingdonshire District Council,20/03/2014,145164,38280,Cambridgeshire County Council,CR017440,Payroll,Financial Services,772,
http://statistics.data.gov.uk/id/local-authority/12UE,Huntingdonshire District Council,13/03/2014,144705,110.8,Orange Airtime,CR455799,Planning M U'S,Mobile Telephones & Radios,241,
http://statistics.data.gov.uk/id/local-authority/12UE,Huntingdonshire District Council,13/03/2014,144354,4695.6,Haymarket Business Media,CR409915,Planning M U'S,Advertising/Promoting Services,255,
http://statistics.data.gov.uk/id/local-authority/12UE,Huntingdonshire District Council,06/03/2014,143905,846,Haymarket Business Publications Ltd,CR417029,Planning M U'S,Corporate Subscriptions,754,
http://statistics.data.gov.uk/id/local-authority/12UE,Huntingdonshire District Council,27/03/2014,145114,741,Holmewood Hall,CR411713,Project Contributions,Hire Of Rooms,411,
http://statistics.data.gov.uk/id/local-authority/12UE,Huntingdonshire District Council,27/03/2014,145118,1170,Deloitte Llp,CR400573,Project Contributions,Consultants,711,
http://statistics.data.gov.uk/id/local-authority/12UE,Huntingdonshire District Council,13/03/2014,143272,1355.72,J Breheny Contractors Ltd,CR000314,Property Development And Mgt,Sitework,359,
http://statistics.data.gov.uk/id/local-authority/12UE,Huntingdonshire District Council,13/03/2014,143740,7200,Nwes Property Services Ltd,CR479264,Property Development And Mgt,Sitework,359,
http://statistics.data.gov.uk/id/local-authority/12UE,Huntingdonshire District Council,13/03/2014,144803,1027,Ecocleen Services Limited,CR406985,Public Conveniences,Building Cleaning Internal,440,
http://statistics.data.gov.uk/id/local-authority/12UE,Huntingdonshire District Council,20/03/2014,145181,1027,Ecocleen Services Limited,CR406985,Public Conveniences,Building Cleaning Internal,440,
http://statistics.data.gov.uk/id/local-authority/12UE,Huntingdonshire District Council,13/03/2014,144518,658.1,Ecocleen Services Limited,CR406985,Public Conveniences,Building Cleaning Internal,440,
http://statistics.data.gov.uk/id/local-authority/12UE,Huntingdonshire District Council,20/03/2014,145179,658.1,Ecocleen Services Limited,CR406985,Public Conveniences,Building Cleaning Internal,440,
http://statistics.data.gov.uk/id/local-authority/12UE,Huntingdonshire District Council,13/03/2014,144247,3643.16,Staffline Group,CR416827,Recycling,Hired Staff,100,
http://statistics.data.gov.uk/id/local-authority/12UE,Huntingdonshire District Council,13/03/2014,144664,3549.31,Staffline Group,CR416827,Recycling,Hired Staff,100,
http://statistics.data.gov.uk/id/local-authority/12UE,Huntingdonshire District Council,13/03/2014,143818,1877.04,Staffline Group,CR416827,Recycling,Hired Staff,100,
http://statistics.data.gov.uk/id/local-authority/12UE,Huntingdonshire District Council,06/03/2014,143459,1510.16,Staffline Group,CR416827,Recycling,Hired Staff,100,
http://statistics.data.gov.uk/id/local-authority/12UE,Huntingdonshire District Council,13/03/2014,144676,108,Red Forge Ltd,CR405690,Recycling,Vehicle Refurbishment,624,
http://statistics.data.gov.uk/id/local-authority/12UE,Huntingdonshire District Council,06/03/2014,143285,632.64,Dennis Eagle Ltd,CR000200,Recycling,Vehicle Parts & Fittings,625,
http://statistics.data.gov.uk/id/local-authority/12UE,Huntingdonshire District Council,13/03/2014,144635,113.41,Trinity Engineering & Component Supplies Ltd,CR455479,Recycling,Vehicle Parts & Fittings,625,
http://statistics.data.gov.uk/id/local-authority/12UE,Huntingdonshire District Council,13/03/2014,144797,171.59,Freedom Lubricants Ltd,CR411569,Recycling,Vehicle Oil & Lubricants,626,
http://statistics.data.gov.uk/id/local-authority/12UE,Huntingdonshire District Council,06/03/2014,143858,2809.08,Viridor Waste Management Ltd,CR482408,Recycling,Recycling Collections,747,
http://statistics.data.gov.uk/id/local-authority/12UE,Huntingdonshire District Council,06/03/2014,144084,1324,Frontline,CR480881,Revenue Services Mus,Training - Professional,130,
http://statistics.data.gov.uk/id/local-authority/12UE,Huntingdonshire District Council,20/03/2014,145191,4980,Cipfa Business Limited,CR480088,Revenue Services Mus,Training - Other,136,
http://statistics.data.gov.uk/id/local-authority/12UE,Huntingdonshire District Council,06/03/2014,142869,14400,Ieg4 Limited,CR453919,Revenue Services Mus,Software,206,
http://statistics.data.gov.uk/id/local-authority/12UE,Huntingdonshire District Council,06/03/2014,144229,38192.4,Northgate Information Solutions Uk Ltd,CR028925,Revenue Services Mus,Software,206,
http://statistics.data.gov.uk/id/local-authority/12UE,Huntingdonshire District Council,13/03/2014,143261,555.54,Royal Mail,CR027083,Revenue Services Mus,Postage,231,
http://statistics.data.gov.uk/id/local-authority/12UE,Huntingdonshire District Council,13/03/2014,144367,355.81,T N T Post London Ltd,CR479965,Revenue Services Mus,Postage,231,
http://statistics.data.gov.uk/id/local-authority/12UE,Huntingdonshire District Council,13/03/2014,144368,178.8,T N T Post London Ltd,CR479965,Revenue Services Mus,Postage,231,
http://statistics.data.gov.uk/id/local-authority/12UE,Huntingdonshire District Council,06/03/2014,143259,294.66,T N T Post London Ltd,CR479965,Revenue Services Mus,Postage,231,
http://statistics.data.gov.uk/id/local-authority/12UE,Huntingdonshire District Council,13/03/2014,143754,403.73,T N T Post London Ltd,CR479965,Revenue Services Mus,Postage,231,
http://statistics.data.gov.uk/id/local-authority/12UE,Huntingdonshire District Council,13/03/2014,144705,69.6,Orange Airtime,CR455799,Revenue Services Mus,Mobile Telephones & Radios,241,
http://statistics.data.gov.uk/id/local-authority/12UE,Huntingdonshire District Council,13/03/2014,144537,4200,Magnet Solutions,CR416903,Revenue Services Mus,Enquiries,723,
http://statistics.data.gov.uk/id/local-authority/12UE,Huntingdonshire District Council,06/03/2014,143034,502.8,Dell Computer Corporation,CR408320,Software Capital,P C'S And Accessories,201,
http://statistics.data.gov.uk/id/local-authority/12UE,Huntingdonshire District Council,13/03/2014,144662,1630.27,Staffline Group,CR416827,Street Cleaning,Hired Staff,100,
http://statistics.data.gov.uk/id/local-authority/12UE,Huntingdonshire District Council,06/03/2014,143460,1615.72,Staffline Group,CR416827,Street Cleaning,Hired Staff,100,
http://statistics.data.gov.uk/id/local-authority/12UE,Huntingdonshire District Council,13/03/2014,143821,1513.82,Staffline Group,CR416827,Street Cleaning,Hired Staff,100,
http://statistics.data.gov.uk/id/local-authority/12UE,Huntingdonshire District Council,13/03/2014,144244,1513.82,Staffline Group,CR416827,Street Cleaning,Hired Staff,100,
http://statistics.data.gov.uk/id/local-authority/12UE,Huntingdonshire District Council,13/03/2014,144781,5494.1,Glasdon Uk Ltd,CR002827,Street Cleaning,Litter Bins,520,
http://statistics.data.gov.uk/id/local-authority/12UE,Huntingdonshire District Council,13/03/2014,144676,108,Red Forge Ltd,CR405690,Street Cleaning,Vehicle Refurbishment,624,
http://statistics.data.gov.uk/id/local-authority/12UE,Huntingdonshire District Council,13/03/2014,144649,1746.62,Marshall Motor Group,CR009641,Street Cleaning,Vehicle Parts & Fittings,625,
http://statistics.data.gov.uk/id/local-authority/12UE,Huntingdonshire District Council,13/03/2014,144635,141.79,Trinity Engineering & Component Supplies Ltd,CR455479,Street Cleaning,Vehicle Parts & Fittings,625,
http://statistics.data.gov.uk/id/local-authority/12UE,Huntingdonshire District Council,13/03/2014,144797,285.97,Freedom Lubricants Ltd,CR411569,Street Cleaning,Vehicle Oil & Lubricants,626,
http://statistics.data.gov.uk/id/local-authority/12UE,Huntingdonshire District Council,13/03/2014,144184,1384.48,Bandvulc Truck Tyres,CR406810,Street Cleaning,Tyres,630,
http://statistics.data.gov.uk/id/local-authority/12UE,Huntingdonshire District Council,13/03/2014,144807,906,Ian'S Tyre & Exhaust Centre,CR405836,Street Cleaning,Tyres,630,
http://statistics.data.gov.uk/id/local-authority/12UE,Huntingdonshire District Council,13/03/2014,143297,1845.93,Cambridgeshire County Council,CR006678,Trade Refuse,Waste Disposal,763,
http://statistics.data.gov.uk/id/local-authority/12UE,Huntingdonshire District Council,06/03/2014,142973,864,Adc East Anglia Limited,CR410308,Watercourses,Sitework,359,
